bitfinex-derivatives/quotes_BTCF0:USTF0_20250906
["timestamp","ask_amount","ask_price","bid_price","bid_amount"]
[1757129802047,0.52876131,111160.0,111150.0,0.00013524]
[1757129803551,0.52776131,111160.0,111150.0,0.00013524]
[1757129804044,0.52676131,111160.0,111150.0,0.00013524]
[1757129804251,0.52976131,111160.0,111150.0,0.02225524]
[1757129804652,0.28925,111160.0,111150.0,0.02225524]
[1757129804854,0.28625,111160.0,111150.0,0.02225524]
[1757129805557,0.28725,111160.0,111150.0,0.02225524]
[1757129805952,0.52776131,111160.0,111150.0,0.02225524]
[1757129807058,0.52676131,111160.0,111150.0,0.02225524]
[1757129807448,0.52676131,111160.0,111150.0,0.00013524]
[1757129809554,1.10385,111160.0,111150.0,0.02219524]
[1757129815868,1.10381,111160.0,111150.0,0.02219524]
[1757129817762,1.10581,111160.0,111150.0,0.02219524]
[1757129817958,1.10881,111160.0,111150.0,0.02219524]
[1757129819163,1.10581,111160.0,111150.0,0.02219524]
[1757129819463,1.10781,111160.0,111150.0,0.02219524]
[1757129819864,1.10881,111160.0,111150.0,0.02219524]
[1757129820066,1.37051224,111160.0,111150.0,0.00013524]
[1757129820364,1.37051132,111160.0,111150.0,0.00013524]
[1757129820766,1.13000001,111160.0,111150.0,0.00013524]
[1757129821065,1.37051132,111160.0,111150.0,0.00013524]
[1757129821265,1.37147132,111160.0,111150.0,0.00013524]
[1757129821963,1.36947132,111160.0,111150.0,0.00013524]
[1757129822562,1.36847132,111160.0,111150.0,0.00013524]
[1757129823065,1.36747132,111160.0,111150.0,0.00013524]
[1757129824765,1.37047132,111160.0,111150.0,0.00013524]
[1757129826369,1.36947132,111160.0,111150.0,0.00013524]
[1757129827262,1.36847132,111160.0,111150.0,0.00013524]
[1757129827571,1.34628131,111160.0,111150.0,0.00013524]
[1757129830263,1.10577,111160.0,111150.0,0.00013524]
[1757129830476,1.33031308,111160.0,111150.0,0.00013524]
[1757129834978,1.32931308,111160.0,111150.0,0.00013524]
[1757129835175,1.33031308,111160.0,111150.0,0.00013524]
[1757129836069,1.32931308,111160.0,111150.0,0.00013524]
[1757129836272,1.33031308,111160.0,111150.0,0.00013524]
[1757129836980,1.32931308,111160.0,111150.0,0.00013524]
[1757129837782,1.32831308,111160.0,111150.0,0.00013524]
[1757129842788,1.32931308,111160.0,111150.0,0.00013524]
[1757129842987,1.33031308,111160.0,111150.0,0.00013524]
[1757129843184,1.55485616,111160.0,111130.0,0.08104469]
[1757129843390,0.25949308,111140.0,111130.0,0.08094469]
[1757129843690,0.03495,111130.0,111120.0,0.32374387]
[1757129843888,0.03495,111130.0,111120.0,0.34701387]
[1757129844486,0.04415086,111130.0,111120.0,0.34701387]
[1757129845694,0.04415086,111130.0,111120.0,0.35001387]
[1757129845894,0.04415086,111130.0,111120.0,0.35101387]
[1757129855902,0.03495,111130.0,111120.0,0.35101387]
[1757129857499,0.03495,111130.0,111120.0,0.37911675]
[1757129859103,0.04401533,111130.0,111120.0,0.37911675]
[1757129861904,0.04401533,111130.0,111120.0,0.29817206]
[1757129867505,0.04401533,111130.0,111120.0,0.37911675]
[1757129868707,0.04401533,111130.0,111120.0,0.63176271]
[1757129869609,0.04401533,111130.0,111120.0,0.36086065]
[1757129873106,0.04401533,111130.0,111120.0,0.27991596]
[1757129873308,0.04401533,111130.0,111120.0,0.36086065]
[1757129873907,0.04401533,111130.0,111120.0,0.35686065]
[1757129874406,0.04401533,111130.0,111120.0,0.27591596]
[1757129874912,0.04401533,111130.0,111120.0,0.27791596]
[1757129875498,0.04401533,111130.0,111120.0,0.27591596]
[1757129877312,0.04401533,111130.0,111120.0,0.27891596]
[1757129877814,0.04401533,111130.0,111120.0,0.27591596]
[1757129878613,0.04401533,111130.0,111120.0,0.27791596]
[1757129880115,0.04401533,111130.0,111120.0,0.27591596]
[1757129880710,0.04401533,111130.0,111120.0,0.27991596]
[1757129883216,0.04401533,111130.0,111120.0,0.36086065]
[1757129883810,0.04401533,111130.0,111120.0,0.10821469]
[1757129884010,0.29666129,111130.0,111120.0,0.10821469]
[1757129884212,0.29666129,111130.0,111120.0,0.27991596]
[1757129884412,0.29666129,111130.0,111120.0,0.36086065]
[1757129887219,0.29666129,111130.0,111120.0,0.10821469]
[1757129887421,0.29666129,111130.0,111120.0,0.36086065]
[1757129889023,0.29666129,111130.0,111120.0,0.10821469]
[1757129889224,0.29666129,111130.0,111120.0,0.36086065]
[1757129892929,0.29666129,111130.0,111120.0,0.35986065]
[1757129893234,0.29666129,111130.0,111120.0,0.35686065]
[1757129893432,0.29666129,111130.0,111120.0,0.35886065]
[1757129894238,0.29666129,111130.0,111120.0,0.35986065]
[1757129894427,0.29666129,111130.0,111120.0,0.36086065]
[1757129900335,0.04401533,111130.0,111120.0,0.36086065]
[1757129902229,0.04401533,111130.0,111120.0,0.10821469]
[1757129902537,0.04401533,111130.0,111120.0,0.36086065]
[1757129903334,0.04401533,111130.0,111120.0,0.10821469]
[1757129903528,0.29666129,111130.0,111120.0,0.10821469]
[1757129903730,0.29666129,111130.0,111120.0,0.36086065]
[1757129904943,0.04401533,111130.0,111120.0,0.36086065]
[1757129905145,0.29666129,111130.0,111120.0,0.36086065]
[1757129907544,0.29666129,111130.0,111120.0,0.27991596]
[1757129910942,0.04401533,111130.0,111120.0,0.27991596]
[1757129912952,0.04273505,111130.0,111120.0,0.27991596]
[1757129914951,0.04273505,111130.0,111120.0,0.36086065]
[1757129915150,0.04273505,111130.0,111120.0,0.27991596]
[1757129916156,0.04273505,111130.0,111120.0,0.02727]
[1757129916356,0.04273505,111130.0,111120.0,0.36086065]
[1757129917464,0.04273505,111130.0,111120.0,0.33280894]
[1757129922673,0.04273505,111130.0,111120.0,0.10821469]
[1757129940380,0.04273505,111130.0,111120.0,0.34014894]
[1757129940586,0.03130533,111130.0,111120.0,0.34014894]
[1757129941391,0.04496533,111130.0,111120.0,0.34014894]
[1757129941686,0.04496533,111130.0,111120.0,0.33280894]
[1757129943680,0.04496533,111130.0,111120.0,0.25186425]
[1757129948079,0.04496533,111130.0,111120.0,0.02727]
[1757129953694,0.04496533,111130.0,111120.0,0.02627]
[1757129953893,0.04496533,111130.0,111120.0,0.02727]
[1757129954094,0.04496533,111130.0,111120.0,0.02427]
[1757129954397,0.04496533,111130.0,111120.0,0.25286425]
[1757129954588,0.04496533,111130.0,111120.0,0.25186425]
[1757129954788,0.04496533,111130.0,111120.0,0.25386425]
[1757129978512,0.04496533,111130.0,111120.0,0.02927]
[1757129979421,0.04496533,111130.0,111120.0,0.28193976]
[1757129982828,0.03130533,111130.0,111120.0,0.28193976]
[1757129983011,0.01294524,111140.0,111120.0,0.54194952]
[1757129983212,0.02199524,111140.0,111130.0,0.28016976]
[1757129983420,0.02189524,111140.0,111130.0,0.28016976]
[1757129983921,0.00013524,111140.0,111130.0,0.28016976]
[1757129984323,0.03104633,111140.0,111130.0,0.0275]
[1757129984524,0.03104633,111140.0,111130.0,0.28016976]
[1757129985220,0.03104633,111140.0,111130.0,0.28216976]
[1757129986425,0.03104633,111140.0,111130.0,0.28316976]
[1757129992619,0.02189524,111140.0,111130.0,0.28316976]
[1757129995224,0.00013524,111140.0,111130.0,0.28316976]
[1757129996532,0.02142524,111140.0,111130.0,0.28316976]
[1757129997428,0.02142524,111140.0,111130.0,0.28516976]
[1757129997633,0.02142524,111140.0,111130.0,0.28716976]
[1757130001232,0.00013524,111140.0,111130.0,0.28716976]
[1757130001830,0.02142524,111140.0,111130.0,0.28716976]
[1757130003933,0.537385,111140.0,111130.0,0.02865]
[1757130006032,0.537385,111140.0,111130.0,0.007]
[1757130006639,0.537385,111140.0,111130.0,0.03008]
[1757130008443,1.353785,111140.0,111130.0,0.03008]
[1757130017552,1.10111524,111140.0,111130.0,0.03008]
[1757130017755,1.353785,111140.0,111130.0,0.03008]
[1757130023658,0.537385,111140.0,111130.0,0.03008]
[1757130023951,1.353745,111140.0,111130.0,0.03008]
[1757130038070,0.28471524,111140.0,111130.0,0.28274976]
[1757130038269,1.353625,111140.0,111130.0,0.28274976]
[1757130039272,1.103625,111140.0,111130.0,0.28274976]
[1757130039475,0.85095524,111140.0,111130.0,0.03008]
[1757130039774,0.03471524,111140.0,111130.0,0.03008]
[1757130039972,0.85095524,111140.0,111130.0,0.03008]
[1757130049281,0.03471524,111140.0,111130.0,0.03008]
[1757130049483,0.55311524,111140.0,111130.0,0.03008]
[1757130049783,0.03471524,111140.0,111130.0,0.03008]
[1757130049984,0.85087524,111140.0,111130.0,0.03008]
[1757130051882,0.03471524,111140.0,111130.0,0.03008]
[1757130052082,0.03471524,111140.0,111130.0,0.2546561]
[1757130052280,0.50223524,111140.0,111130.0,0.03008]
[1757130052586,0.50223524,111140.0,111130.0,0.2546561]
[1757130052788,0.50223524,111140.0,111130.0,0.03008]
[1757130064593,0.50223524,111140.0,111130.0,0.007]
[1757130064794,0.72681134,111140.0,111130.0,0.007]
[1757130075914,0.72681134,111140.0,111130.0,0.02824]
[1757130078312,0.72681134,111140.0,111130.0,0.007]
[1757130081111,0.79703662,111140.0,111130.0,0.007]
[1757130084716,0.79703662,111140.0,111130.0,0.03014]
[1757130085419,0.79703662,111140.0,111130.0,0.007]
[1757130088120,0.81942528,111140.0,111130.0,0.007]
[1757130091224,0.81942528,111140.0,111130.0,0.03014]
[1757130092429,0.81942528,111140.0,111130.0,0.007]
[1757130096527,0.79703662,111140.0,111130.0,0.007]
[1757130098731,0.79703662,111140.0,111130.0,0.03014]
[1757130098932,0.79703662,111140.0,111130.0,0.007]
[1757130099432,0.82514352,111140.0,111130.0,0.007]
[1757130102634,0.82514352,111140.0,111130.0,0.03014]
[1757130102830,0.82514352,111140.0,111130.0,0.007]
[1757130105635,1.17354352,111140.0,111130.0,0.03014]
[1757130111435,0.35762352,111140.0,111130.0,0.03014]
[1757130111636,1.17350352,111140.0,111130.0,0.03014]
[1757130117146,1.17350352,111140.0,111130.0,0.282823]
[1757130121143,1.17350352,111140.0,111130.0,0.007]
[1757130122750,1.17350352,111140.0,111130.0,0.282543]
[1757130123451,1.17350352,111140.0,111130.0,0.259683]
[1757130123652,1.17350352,111140.0,111130.0,0.007]
[1757130152473,1.1958622,111140.0,111130.0,0.007]
[1757130153873,1.6985452,111140.0,111130.0,0.007]
[1757130154173,0.286953,111120.0,111110.0,0.02272]
[1757130154475,1.102553,111120.0,111110.0,0.02262]
[1757130155374,1.102553,111120.0,111110.0,0.02562]
[1757130156075,1.102553,111120.0,111110.0,0.02762]
[1757130156678,0.84987,111120.0,111110.0,0.02762]
[1757130156974,1.102553,111120.0,111110.0,0.02762]
[1757130157672,1.102553,111120.0,111110.0,0.0051]
[1757130159478,1.07455418,111120.0,111110.0,0.0051]
[1757130162680,1.07455418,111120.0,111110.0,0.02762]
[1757130163280,1.07455418,111120.0,111110.0,0.0051]
[1757130163480,1.07455418,111120.0,111110.0,0.02762]
[1757130163980,1.07455418,111120.0,111110.0,0.0051]
[1757130165573,0.84987,111120.0,111110.0,0.02762]
[1757130165775,1.07455418,111120.0,111110.0,0.0051]
[1757130166881,1.07455418,111120.0,111110.0,0.02631]
[1757130168389,1.07455418,111120.0,111110.0,0.0051]
[1757130168984,1.07455418,111120.0,111110.0,0.02631]
[1757130177386,1.07455418,111120.0,111110.0,0.0051]
[1757130179592,1.07455418,111120.0,111110.0,0.02631]
[1757130179793,1.07455418,111120.0,111110.0,0.0051]
[1757130180193,1.07455418,111120.0,111110.0,0.02631]
[1757130184196,0.25895418,111120.0,111110.0,0.02631]
[1757130184395,1.07451418,111120.0,111110.0,0.02631]
[1757130186296,0.84983,111120.0,111110.0,0.02631]
[1757130187096,0.03427,111120.0,111110.0,0.02631]
[1757130187297,0.84979,111120.0,111110.0,0.02631]
[1757130193004,0.03427,111120.0,111110.0,0.25099418]
[1757130193206,0.84979,111120.0,111110.0,0.50099418]
[1757130193399,0.84979,111120.0,111110.0,0.58193887]
[1757130194205,0.84979,111120.0,111110.0,0.35725469]
[1757130195406,0.84979,111120.0,111110.0,0.27631]
[1757130211108,0.0218,111120.0,111110.0,0.27962607]
[1757130211309,0.11115,111130.0,111110.0,0.27962607]
[1757130211509,0.03479,111130.0,111120.0,0.24713418]
[1757130211808,0.0218,111130.0,111120.0,0.33392887]
[1757130213310,0.0218,111130.0,111120.0,0.33492887]
[1757130217817,0.0218,111130.0,111120.0,0.25398418]
[1757130219519,0.0218,111130.0,111120.0,0.29096169]
[1757130219720,0.0218,111130.0,111120.0,0.54359734]
[1757130219917,0.01352524,111140.0,111120.0,0.5345713]
[1757130220115,0.03532524,111140.0,111130.0,0.27508565]
[1757130220318,0.03522524,111140.0,111130.0,0.27508565]
[1757130221422,0.28786089,111140.0,111130.0,0.27508565]
[1757130221812,0.03522524,111140.0,111130.0,0.27308565]
[1757130222013,0.02193524,111140.0,111130.0,0.27970565]
[1757130222614,0.02293524,111140.0,111130.0,0.27970565]
[1757130222818,0.02293524,111140.0,111130.0,0.28070565]
[1757130224720,0.03675524,111140.0,111130.0,0.28070565]
[1757130225111,0.03675524,111140.0,111130.0,0.27408565]
[1757130225523,0.03675524,111140.0,111130.0,0.27308565]
[1757130226115,0.03575524,111140.0,111130.0,0.27308565]
[1757130226518,0.03575524,111140.0,111130.0,0.27408565]
[1757130226722,0.03575524,111140.0,111130.0,0.27508565]
[1757130228129,0.03675524,111140.0,111130.0,0.27408565]
[1757130228419,0.03775524,111140.0,111130.0,0.27308565]
[1757130229227,0.03675524,111140.0,111130.0,0.27308565]
[1757130231520,0.03775524,111140.0,111130.0,0.27308565]
[1757130231921,0.03675524,111140.0,111130.0,0.27308565]
[1757130232121,0.03775524,111140.0,111130.0,0.27308565]
[1757130232321,0.03675524,111140.0,111130.0,0.27308565]
[1757130233125,0.28939089,111140.0,111130.0,0.27308565]
[1757130233527,0.29039089,111140.0,111130.0,0.27308565]
[1757130234430,0.29139089,111140.0,111130.0,0.27308565]
[1757130235130,0.29039089,111140.0,111130.0,0.27308565]
[1757130235527,0.28939089,111140.0,111130.0,0.27308565]
[1757130236731,0.28839089,111140.0,111130.0,0.27408565]
[1757130236930,0.03575524,111140.0,111130.0,0.27408565]
[1757130237433,0.03575524,111140.0,111130.0,0.27508565]
[1757130238231,0.03575524,111140.0,111130.0,0.27408565]
[1757130238733,0.03675524,111140.0,111130.0,0.27308565]
[1757130242433,0.03775524,111140.0,111130.0,0.27308565]
[1757130242637,0.03775524,111140.0,111130.0,0.02245]
[1757130242837,0.03675524,111140.0,111130.0,0.27508565]
[1757130243038,0.03875524,111140.0,111130.0,0.27508565]
[1757130243447,0.03675524,111140.0,111130.0,0.27508565]
[1757130243646,0.03875524,111140.0,111130.0,0.27508565]
[1757130244046,0.03775524,111140.0,111130.0,0.27508565]
[1757130245345,0.03675524,111140.0,111130.0,0.27508565]
[1757130245650,0.03575524,111140.0,111130.0,0.27508565]
[1757130245851,0.03675524,111140.0,111130.0,0.27508565]
[1757130246348,0.03675524,111140.0,111130.0,0.27608565]
[1757130246349,0.03575524,111140.0,111130.0,0.27608565]
[1757130247848,0.03575524,111140.0,111130.0,0.27708565]
[1757130250441,0.03575524,111140.0,111130.0,0.35803034]
[1757130253250,0.03575524,111140.0,111130.0,0.27708565]
[1757130253850,0.03575524,111140.0,111130.0,0.27608565]
[1757130254043,0.03675524,111140.0,111130.0,0.27508565]
[1757130255851,0.03775524,111140.0,111130.0,0.27508565]
[1757130256250,0.03675524,111140.0,111130.0,0.27508565]
[1757130256452,0.03575524,111140.0,111130.0,0.27508565]
[1757130257156,0.03775524,111140.0,111130.0,0.27508565]
[1757130259460,0.03675524,111140.0,111130.0,0.27508565]
[1757130260259,0.03775524,111140.0,111130.0,0.27508565]
[1757130260457,0.03775524,111140.0,111130.0,0.35603034]
[1757130262260,0.03675524,111140.0,111130.0,0.35603034]
[1757130262960,0.03575524,111140.0,111130.0,0.35603034]
[1757130263354,0.28839089,111140.0,111130.0,0.35603034]
[1757130264162,0.28839089,111140.0,111130.0,0.27508565]
[1757130264461,0.28939089,111140.0,111130.0,0.27508565]
[1757130265463,0.29039089,111140.0,111130.0,0.27508565]
[1757130266064,0.28939089,111140.0,111130.0,0.27508565]
[1757130266565,0.28839089,111140.0,111130.0,0.27508565]
[1757130268464,0.28939089,111140.0,111130.0,0.27508565]
[1757130270067,0.28839089,111140.0,111130.0,0.27508565]
[1757130274272,0.28939089,111140.0,111130.0,0.27508565]
[1757130274668,0.29039089,111140.0,111130.0,0.27508565]
[1757130275670,0.28939089,111140.0,111130.0,0.27508565]
[1757130276468,0.28839089,111140.0,111130.0,0.27508565]
[1757130280374,0.03575524,111140.0,111130.0,0.27508565]
[1757130280575,0.28839089,111140.0,111130.0,0.27508565]
[1757130281482,0.03575524,111140.0,111130.0,0.24700901]
[1757130287077,0.03575524,111140.0,111130.0,0.02245]
[1757130287977,0.03575524,111140.0,111130.0,0.24700901]
[1757130292080,0.03675524,111140.0,111130.0,0.24700901]
[1757130293585,0.03775524,111140.0,111130.0,0.02245]
[1757130295880,0.03675524,111140.0,111130.0,0.02245]
[1757130296584,0.03575524,111140.0,111130.0,0.02245]
[1757130299686,0.03675524,111140.0,111130.0,0.02245]
[1757130299880,0.03775524,111140.0,111130.0,0.02245]
[1757130301487,0.03675524,111140.0,111130.0,0.02245]
[1757130303191,0.03775524,111140.0,111130.0,0.02245]
[1757130303782,0.03675524,111140.0,111130.0,0.02245]
[1757130304585,0.03575524,111140.0,111130.0,0.02245]
[1757130305992,0.03675524,111140.0,111130.0,0.02245]
[1757130306588,0.03575524,111140.0,111130.0,0.02245]
[1757130312289,0.03575524,111140.0,111130.0,0.10339469]
[1757130312493,0.03675524,111140.0,111130.0,0.02245]
[1757130312895,0.03775524,111140.0,111130.0,0.02245]
[1757130313494,0.03675524,111140.0,111130.0,0.02245]
[1757130315299,0.03775524,111140.0,111130.0,0.02245]
[1757130323004,0.03775524,111140.0,111130.0,0.24700901]
[1757130323706,0.02393524,111140.0,111130.0,0.25362901]
[1757130324605,0.03791524,111140.0,111130.0,0.02907]
[1757130324807,0.03691524,111140.0,111130.0,0.25462901]
[1757130325306,0.03591524,111140.0,111130.0,0.25562901]
[1757130334821,0.03591524,111140.0,111130.0,0.02445]
[1757130336719,0.03591524,111140.0,111130.0,0.24900901]
[1757130339220,0.03591524,111140.0,111130.0,0.02445]
[1757130341421,0.28854741,111140.0,111130.0,0.27708217]
[1757130347330,0.03591524,111140.0,111130.0,0.27708217]
[1757130348926,0.28854741,111140.0,111130.0,0.27708217]
[1757130353433,0.00013524,111140.0,111130.0,0.27708217]
[1757130353733,0.00013524,111140.0,111130.0,0.28370217]
[1757130355626,0.02147524,111140.0,111130.0,0.28370217]
[1757130360432,0.03442524,111140.0,111130.0,0.27708217]
[1757130389658,0.28705741,111140.0,111130.0,0.02445]
[1757130389955,0.28705741,111140.0,111130.0,0.27708217]
[1757130392061,0.03442524,111140.0,111130.0,0.27708217]
[1757130402466,0.28705741,111140.0,111130.0,0.27708217]
[1757130403063,0.28705741,111140.0,111130.0,0.02445]
[1757130403264,0.28705741,111140.0,111130.0,0.27708217]
[1757130403468,0.03442524,111140.0,111130.0,0.24900987]
[1757130417975,0.03442524,111140.0,111130.0,0.32995456]
[1757130420476,0.03442524,111140.0,111130.0,0.24900987]
[1757130424187,0.03442524,111140.0,111130.0,0.02445]
[1757130424485,0.03442524,111140.0,111130.0,0.24900987]
[1757130425485,0.25898511,111140.0,111130.0,0.02445]
[1757130426684,0.03442524,111140.0,111130.0,0.02445]
[1757130429587,0.50898511,111140.0,111130.0,0.02445]
[1757130429887,0.50898511,111140.0,111130.0,0.002]
[1757130433292,0.50898511,111140.0,111130.0,0.02489]
[1757130440387,1.32294511,111140.0,111130.0,0.02489]
[1757130441299,0.28442524,111140.0,111130.0,0.02489]
[1757130441500,1.07294511,111140.0,111130.0,0.002]
[1757130443797,1.07294511,111140.0,111130.0,0.02311]
[1757130463417,0.28710038,111140.0,111130.0,0.02311]
[1757130463617,0.84838524,111140.0,111130.0,0.02311]
[1757130463818,1.10106038,111140.0,111130.0,0.02311]
[1757130465924,1.10106038,111140.0,111130.0,0.002]
[1757130468718,1.17361745,111140.0,111130.0,0.002]
[1757130474023,1.10106038,111140.0,111130.0,0.002]
[1757130476227,1.10106038,111140.0,111130.0,0.001]
[1757130476428,1.10306038,111140.0,111130.0,0.001]
[1757130478730,0.03539,111120.0,111110.0,0.27591514]
[1757130478934,0.03539,111120.0,111110.0,0.02314]
[1757130478935,1.10214514,111120.0,111110.0,0.02314]
[1757130479133,1.10214514,111120.0,111110.0,0.27581514]
[1757130480335,0.28806514,111120.0,111110.0,0.27581514]
[1757130482333,0.28806514,111120.0,111110.0,0.27681514]
[1757130482934,0.03539,111120.0,111110.0,0.27681514]
[1757130483136,0.28806514,111120.0,111110.0,0.27681514]
[1757130486436,0.28806514,111120.0,111110.0,0.35775983]
[1757130486946,0.03539,111120.0,111110.0,0.35775983]
[1757130487145,0.28806514,111120.0,111110.0,0.35775983]
[1757130494554,0.28806514,111120.0,111110.0,0.27681514]
[1757130496457,0.03539,111120.0,111110.0,0.27681514]
[1757130496762,0.28806514,111120.0,111110.0,0.27681514]
[1757130500065,0.28806514,111120.0,111110.0,0.35775983]
[1757130510873,0.28806514,111120.0,111110.0,0.27681514]
[1757130517976,0.03539,111120.0,111110.0,0.27681514]
[1757130518180,0.28806514,111120.0,111110.0,0.27681514]
[1757130521481,0.03539,111120.0,111110.0,0.27681514]
[1757130521781,0.28806514,111120.0,111110.0,0.27681514]
[1757130522779,0.03539,111120.0,111110.0,0.27681514]
[1757130525487,0.03539,111120.0,111110.0,0.02414]
[1757130529386,0.03539,111120.0,111110.0,0.24877076]
[1757130546693,0.03539,111120.0,111110.0,0.02414]
[1757130548198,0.01315,111130.0,111110.0,0.25933076]
[1757130548497,0.02132,111120.0,111110.0,0.25933076]
[1757130549396,0.02132,111120.0,111110.0,0.34027545]
[1757130549600,0.02132,111120.0,111110.0,0.33927545]
[1757130549902,0.03397,111120.0,111110.0,0.33927545]
[1757130550402,0.03397,111120.0,111110.0,0.11464469]
[1757130550706,0.03397,111120.0,111110.0,0.33927545]
[1757130551802,0.03397,111120.0,111110.0,0.32871545]
[1757130553404,0.03397,111120.0,111110.0,0.10408469]
[1757130555401,0.03397,111120.0,111110.0,0.02314]
[1757130561905,0.03397,111120.0,111110.0,0.10408469]
[1757130563807,0.03397,111120.0,111110.0,0.02314]
[1757130573616,0.03397,111120.0,111110.0,0.10408469]
[1757130574418,0.03397,111120.0,111110.0,0.32871545]
[1757130575518,0.03397,111120.0,111110.0,0.24777076]
[1757130578221,0.03397,111120.0,111110.0,0.24877076]
[1757130578417,0.03397,111120.0,111110.0,0.24977076]
[1757130585428,0.28667257,111120.0,111110.0,0.27784257]
[1757130585630,0.28667257,111120.0,111110.0,0.35878726]
[1757130588029,0.28667257,111120.0,111110.0,0.27784257]
[1757130589141,0.28667257,111120.0,111110.0,0.02514]
[1757130589340,0.28667257,111120.0,111110.0,0.27784257]
[1757130597646,0.28667257,111120.0,111110.0,0.02514]
[1757130597859,0.28667257,111120.0,111110.0,0.27784257]
[1757130600149,0.03397,111120.0,111110.0,0.27784257]
[1757130600350,0.28667257,111120.0,111110.0,0.27784257]
[1757130601145,0.02132,111120.0,111110.0,0.28840257]
[1757130606157,0.03427,111120.0,111110.0,0.0357]
[1757130606361,0.03427,111120.0,111110.0,0.27784257]
[1757130610260,0.03427,111120.0,111110.0,0.35878726]
[1757130611664,0.03427,111120.0,111110.0,0.10608469]
[1757130611853,0.03427,111120.0,111110.0,0.35878726]
[1757130615362,0.03427,111120.0,111110.0,0.27784257]
[1757130616963,0.02132,111120.0,111110.0,0.28840257]
[1757130622465,0.02132,111120.0,111110.0,0.0357]
[1757130622665,0.03497,111120.0,111110.0,0.0357]
[1757130622868,0.03497,111120.0,111110.0,0.28840257]
[1757130623365,0.03497,111120.0,111110.0,0.36934726]
[1757130630369,0.03497,111120.0,111110.0,0.28840257]
[1757130634868,0.02132,111120.0,111110.0,0.28840257]
[1757130636969,0.02132,111120.0,111110.0,0.36934726]
[1757130638470,0.02132,111120.0,111110.0,0.28840257]
[1757130640268,0.02132,111120.0,111110.0,0.36934726]
[1757130640571,0.28767257,111120.0,111110.0,0.11664469]
[1757130640769,0.28767257,111120.0,111110.0,0.35878726]
[1757130640964,0.28767257,111120.0,111110.0,0.27784257]
[1757130647077,0.28767257,111120.0,111110.0,0.02514]
[1757130647274,0.28767257,111120.0,111110.0,0.27784257]
[1757130647473,0.03497,111120.0,111110.0,0.02514]
[1757130647965,0.03497,111120.0,111110.0,0.10608469]
[1757130660484,0.03497,111120.0,111110.0,0.33071605]
[1757130661580,0.03497,111120.0,111110.0,0.10608469]
[1757130663584,0.03497,111120.0,111110.0,0.33071605]
[1757130664183,0.03497,111120.0,111110.0,0.10608469]
[1757130665182,0.03497,111120.0,111110.0,0.02514]
[1757130679602,0.03497,111120.0,111110.0,0.24977136]
[1757130683607,0.03497,111120.0,111110.0,0.02514]
[1757130684502,0.03497,111120.0,111110.0,0.24977136]
[1757130688212,0.03497,111120.0,111110.0,0.33071605]
[1757130691109,0.03497,111120.0,111110.0,0.10608469]
[1757130702528,0.03497,111120.0,111110.0,0.02514]
[1757130702727,0.03497,111120.0,111110.0,0.10608469]
[1757130703224,0.03497,111120.0,111110.0,0.02514]
[1757130704928,0.03497,111120.0,111110.0,0.10608469]
[1757130709531,0.28768992,111120.0,111110.0,0.35880461]
[1757130710629,0.28768992,111120.0,111110.0,0.10608469]
[1757130710830,0.79040984,111120.0,111110.0,0.0021]
[1757130712130,1.60380984,111120.0,111110.0,0.0021]
[1757130729959,1.60388984,111120.0,111110.0,0.0021]
[1757130732060,0.79040984,111120.0,111110.0,0.0021]
[1757130732258,1.60388984,111120.0,111110.0,0.0021]
[1757130735362,1.6266727,111120.0,111110.0,0.0021]
[1757130737259,1.60388984,111120.0,111110.0,0.0021]
[1757130738265,1.6266898,111120.0,111110.0,0.0021]
[1757130740363,1.6287298,111120.0,111110.0,0.0021]
[1757130740567,0.8132098,111120.0,111110.0,0.0021]
[1757130740763,1.6286898,111120.0,111110.0,0.0021]
[1757130759389,1.3786898,111120.0,111110.0,0.0021]
[1757130769398,1.12596988,111120.0,111110.0,0.0021]
[1757130769602,1.09798149,111120.0,111110.0,0.0021]
[1757130769903,0.28250149,111120.0,111110.0,0.0021]
[1757130770104,1.09718149,111120.0,111110.0,0.0021]
[1757130775113,1.32191302,111120.0,111110.0,0.0021]
[1757130777315,0.50723302,111120.0,111110.0,0.0021]
[1757130777516,1.32167302,111120.0,111110.0,0.0021]
[1757130779818,1.32155302,111120.0,111110.0,0.0021]
[1757130780816,0.50723302,111120.0,111110.0,0.0021]
[1757130781015,1.32155302,111120.0,111110.0,0.0021]
[1757130782018,0.50723302,111120.0,111110.0,0.0021]
[1757130782420,1.32151302,111120.0,111110.0,0.0021]
[1757130782719,1.09678149,111120.0,111110.0,0.0021]
[1757130791023,0.28250149,111120.0,111110.0,0.0021]
[1757130791429,1.09650149,111120.0,111110.0,0.0021]
[1757130794132,0.28250149,111120.0,111110.0,0.0021]
[1757130794431,1.09650149,111120.0,111110.0,0.0021]
[1757130815243,1.32123302,111120.0,111110.0,0.0021]
[1757130830052,1.09650149,111120.0,111110.0,0.0021]
[1757130830651,1.32123302,111120.0,111110.0,0.0021]
[1757130831454,1.37740462,111120.0,111110.0,0.0021]
[1757130837455,0.05776996,111120.0,111110.0,0.02316]
[1757130837652,1.37712462,111120.0,111110.0,0.02316]
[1757130840866,1.37712462,111120.0,111110.0,0.0021]
[1757130848970,0.56340462,111120.0,111110.0,0.0021]
[1757130849171,1.37708462,111120.0,111110.0,0.0021]
[1757130864882,0.56340462,111120.0,111110.0,0.0239]
[1757130865087,1.37704462,111120.0,111110.0,0.0239]
[1757130865988,1.37704462,111120.0,111110.0,0.0021]
[1757130866285,1.37704462,111120.0,111110.0,0.0239]
[1757130866681,0.56340462,111120.0,111110.0,0.0239]
[1757130866887,1.37704462,111120.0,111110.0,0.0239]
[1757130867387,0.56340462,111120.0,111110.0,0.0239]
[1757130867590,1.37704462,111120.0,111110.0,0.0239]
[1757130869387,0.56340462,111120.0,111110.0,0.0239]
[1757130869586,1.37704462,111120.0,111110.0,0.0239]
[1757130870688,0.56340462,111120.0,111110.0,0.0239]
[1757130870888,1.37704462,111120.0,111110.0,0.0239]
[1757130876993,0.56340462,111120.0,111110.0,0.0239]
[1757130877198,0.05776996,111120.0,111110.0,0.2739]
[1757130877398,1.12422729,111120.0,111110.0,0.2739]
[1757130879396,1.12422729,111120.0,111110.0,0.0239]
[1757130880396,1.37704462,111120.0,111110.0,0.0239]
[1757130881904,1.12422729,111120.0,111110.0,0.0239]
[1757130882098,1.37704462,111120.0,111110.0,0.0239]
[1757130882599,1.35424466,111120.0,111110.0,0.0239]
[1757130893401,1.07329191,111120.0,111110.0,0.0239]
[1757130894812,0.84861,111120.0,111110.0,0.0239]
[1757130895114,1.07329191,111120.0,111110.0,0.0239]
[1757130898312,1.09591072,111120.0,111110.0,0.0239]
[1757130901318,0.28227072,111120.0,111110.0,0.0239]